{"text_format":"1","workbook":"xlsx","n_sheets":4,"sheets":["Инструкция","Для заявителя","Для поручителя","Доп. вопросник"],"not_rendered":{"charts":0,"images":0,"macros":1,"external_links":0,"defined_names":11,"comments":0,"pivot_tables":0},"unopened":[],"bounds":{"document_bytes":16777216,"sheet_cells":100000,"rows_first":2000,"rows_last":500,"rows_between":2000,"halvings":0,"cell_chars":16384,"cell_head_chars":4096},"cells_cut":0,"cells_raw":0,"read":"whole","date_system":"1900"}

{"sheet":"Инструкция","index":0,"n_rows":6,"n_cols":2,"rows_kept":6,"cut":false,"hidden":false,"merged":[[7,1,7,5],[5,1,5,5],[0,0,0,5],[2,1,2,5],[3,1,3,5],[4,1,4,5],[6,1,6,5]]}
["ИНСТРУКЦИЯ ПО РАБОТЕ С ФАЙЛОМ"]
[]
["1.","Клиент-менеджеру необходимо дать ответы на вопросы, расположенные в начале каждого листа файла.\nПосле ответов данный список вопросов необходимо свернуть через \"+\", расположенный слева."]
["2. ","В результате ответов на вопросы в столбце В появятся знаки \"+\" и \"-\".\nКлиент-менеджеру необходимо через фильтр выбрать только документы, отмеченные знаком \"+\". Таким образом, формируется итоговый список для отправки заявителю."]
["3.","Клиент-менеджеру необходимо перепроверить полученный список на предмет актуальности предоставленных ранее документов. Если какие-то документы были предоставлены в Банк ранее (и они находятся в актуальном состоянии), то необходимо в столбце С  проставить \"+\" и также применить фильтр в данном столбце, отправив заявителю только те документы, которые в Банк ранее не предоставлялись."]
["4.","В документе, направляемом заявителю, должны быть раскрыты только те листы, на которых перечислены документы, которые необходимо предоставить заявителю для рассмотрения конкретной сделки (например, если не планируется предоставление поручительства по сделке, необходимо скрыть лист с соответствующими документами), также необходимо скрыть настоящий лист с инструкцией по работе с файлом, лист \"Доп. вопросник\" и т.д."]

{"sheet":"Для заявителя","index":1,"n_rows":54,"n_cols":7,"rows_kept":54,"cut":false,"hidden":false,"merged":[[53,2,53,6],[49,3,49,6],[41,4,42,4],[3,1,3,2],[4,1,4,2],[5,1,5,2],[6,1,6,2],[7,1,7,2],[9,1,9,2],[0,3,0,6],[1,3,1,6],[2,3,2,6],[32,3,32,6],[41,3,42,3],[39,3,40,3],[39,4,40,4],[3,3,3,6],[4,3,4,6],[5,3,5,6],[6,3,6,6],[7,3,7,6],[8,3,8,6],[2,1,2,2],[2,0,9,0],[35,3,35,6],[10,0,10,6],[28,3,28,6],[29,3,30,3],[29,0,30,0],[12,3,12,6],[13,3,13,6],[9,3,9,6],[8,1,8,2],[51,7,51,10],[52,2,52,6],[45,3,45,6],[50,2,50,6],[51,2,51,6]]}
[null,null,null,"СПИСОК"]
[null,null,null,"  документов на получение овердрафтного кредита или кредита \"ЗАРАЗ\""]
["ЧЕК-ЛИСТ (заполняет АП/КМ перед  отправкой Клиенту)","Овердрафт",null,"Выберите вид запрашиваемого продукта"]
[null,null,null,"Выберите тип Заявителя"]
[null,null,null,"Заявитель находится на РКО в Банке менее 6 месяцев либо не является клиентом Банка"]
[null,null,null,"У Заявителя имеются действующие договоры на осуществление финансовых операций в письменной форме (в рамках ПВК)?"]
[null,null,null,"Кто является руководителем Заявителя?"]
[null,null,null,"Договоры от имени юридического лица будет подписывать НЕ руководитель, а иное уполномоченное лицо?"]
[null,null,null,"Выберите вид кредитной линии по продукту \"ЗАРАЗ\""]
[null,null,null,"Запрашиваемая сделка будет обеспечена поручительством?"]
[]
[null,"Отметка о необходимости документа","Отметка Банка о наличии документа ","Наименование документа","Комментарий","Срок действия документа","Описание формы предоставления"]
["1.",{"$f":"IF($B$6=\"Нет\",\"+\",\"-\")","v":"-"},null,"Правоустанавливающие документы"]
[null,{"$f":"IF($B$6=\"Нет\",\"+\",\"-\")","v":"-"},null,"Документы из списка (п. 1.1-1.6) ниже могут не предоставляться, если они уже предоставлены и их актуальность подтверждена (т.е. в них не вносились изменения, срок их действия не истек, документы содержат информацию о всех сделках в подаваемой заявке (-ах)). \nВсе документы предоставляются 1-м экземпляре (даже в случае, если сделок в заявке (одновременного поступивших заявках) несколько)"]
["1.1",{"$f":"IF($B$4=\"Юр. лицо\",\"+\",\"-\")","v":"-"},null,"Устав / Учредительный договор","Учредительный договор предоставлется в случае, если клиент - полное товарищество, коммандитное товарищество","до момента изменения информации ","копия *"]
["1.1'","+",null,"Документ о государственной регистрации (перерегистрации) клиента",null,null,"копия* или скан-копия** "]
["1.2",{"$f":"IF(AND($B$4=\"Юр. лицо\",$B$7=\"Физ. лицо\"),\"+\",\"-\")","v":"-"},null,"Документ, удостоверяющий личность руководителя","Страницы (стороны) документа, удостоверяющего личность руководителя, содержащих информацию о фамилии (имени, отчестве) руководителя, реквизитах данного документа, адресе регистрации, фотографию (для паспорта: с. 25, 31, 32, страница с фото, страница с адресом регистрации; для вида на жительство – с. 16, страница с фото, страница с адресом регистрации; для биометрического документа, удостоверяющего личность: обе стороны документа)","до окончания срока действия паспорта руководителя","копия* или скан-копия** "]
["1.2",{"$f":"IF($B$4=\"ИП\",\"+\",\"-\")","v":"-"},null,"Документ, удостоверяющий личность клиента - индивидуального предпринимателя","Страницы (стороны) документа, удостоверяющего личность, содержащих информацию о фамилии (имени, отчестве) клиента, реквизитах данного документа, адресе регистрации, фотографию (для паспорта: с. 25, 31, 32, страница с фото, страница с адресом регистрации; для вида на жительство – с. 16, страница с фото, страница с адресом регистрации; для биометрического документа, удостоверяющего личность: обе стороны документа)","до окончания срока действия паспорта","копия* или скан-копия** "]
["1.3",{"$f":"IF(AND($B$4=\"Юр. лицо\",$B$7=\"Физ. лицо\"),\"+\",\"-\")","v":"-"},null,"Трудовой договор (контракт) либо выписка из него с лицом, являющимся руководителем клиента. ","Выписка должна содержать условия, касающиеся прав и обязанностей указанного лица, информацию о сроке действия трудового договора (контракта). \nВместо указанного документа может предоставляться копия решения о назначении себя руководителем в случае, если учредитель унитарного предприятия является руководителем этого же унитарного предприятия, единственный участник хозяйственного общества является руководителем этого же хозяйственного общества.","до окончания срока действия трудового договора (контракта)\n\nобщий срок контракта не должен превышать 5 лет","копия *\nоригинал*** (для выписки из трудового договора)"]
["1.3.1",{"$f":"IF(AND($B$4=\"Юр. лицо\",$B$7=\"Управляющ. ИП\"),\"+\",\"-\")","v":"-"},null,"Договор (контракт) о передаче полномочий на управление, заключенный между клиентом и индивидуальным предпринимателем (управляющим).",null,"до указанной в нем даты","копия *"]
["1.3.2",{"$f":"IF(AND($B$4=\"Юр. лицо\",$B$7=\"Управляющ. ИП\"),\"+\",\"-\")","v":"-"},null,"Документ о государственной регистрации (перерегистрации) индивидуального предпринимателя, выступающего в качестве управляющего.",null,"до момента прекращения деятельности ИП","копия* или скан-копия** \n"]
["1.3.3",{"$f":"IF(AND($B$4=\"Юр. лицо\",$B$7=\"Управляющ. ИП\"),\"+\",\"-\")","v":"-"},null,"Документ, удостоверяющий личность управляющего.","Страницы (стороны) документа, удостоверяющего личность, содержащих информацию о фамилии (имени, отчестве), реквизитах данного документа, адресе регистрации, фотографию (для паспорта: с. 25, 31, 32, страница с фото, страница с адресом регистрации; для вида на жительство – с. 16, страница с фото, страница с адресом регистрации; для биометрического документа, удостоверяющего личность: обе стороны документа)","до указанной в нем даты","копия* или скан-копия** "]
["1.3.1",{"$f":"IF(AND($B$4=\"Юр. лицо\",$B$7=\"Управляющ. орг-ция\"),\"+\",\"-\")","v":"-"},null,"Договор (контракт) о передаче полномочий на управление, заключенный между клиентом и коммерческой организацией (управляющей организацией).",null,"до указанной в нем даты","копия *"]
["1.3.2","-",null,"Документ о государственной регистрации управляющей организации.",null,"до указанной в нем даты","копия* или скан-копия** "]
["1.3.3","-",null,"Документ, удостоверяющий личность руководителя управляющей организации.","Страницы (стороны) документа, удостоверяющего личность, содержащих информацию о фамилии (имени, отчестве), реквизитах данного документа, адресе регистрации, фотографию (для паспорта: с. 25, 31, 32, страница с фото, страница с адресом регистрации; для вида на жительство – с. 16, страница с фото, страница с адресом регистрации; для биометрического документа, удостоверяющего личность: обе стороны документа)","до указанной в нем даты","копия* или скан-копия** "]
["1.3.4","-",null,"Трудовой договор (контракт) либо выписка из него с руководителем управляющей организации. ","Выписка должна содержать условия, касающиеся прав и обязанностей указанного лица, информацию о сроке действия трудового договора (контракта).\nВместо указанного документа может предоставляться копия решения о назначении себя руководителем в случае, если учредитель унитарного предприятия является руководителем этого же унитарного предприятия, единственный участник хозяйственного общества является руководителем этого же хозяйственного общества.","до окончания срока действия трудового договора (контракта).","копия *\nоригинал*** (для выписки из трудового договора)"]
["1.3.5","-",null,"Устав коммерческой организации (управляющей организации).","Управляющая организация - полное товарищество, коммандитное товарищество предоставляет учредительный договор","до момента внесения и регистрации изменений в Устав","копия *"]
["1.3.6","-",null,"Доверенность уполномоченного лица на представление интересов клиента и документ, удостоверяющий его личность.","Подробнее см ниже:","доверенность действительна до даты, указанной в ней.","доверенность - копия* или оригинал***\nдокумент, удостоверяющий личность - копия * или скан-копия** "]
[null,null,null,"Предоставляются в случае, если управляющая организация исполняет обязанности руководства клиентом в лице иного уполномоченного лица, нежели руководителя управляющей организации.\nПредоставляются страницы документа, удостоверяющего личность, содержащие информацию о фамилии (имени, отчестве), реквизитах данного документа, адресе регистрации, фотографию (для паспорта: с. 25, 31, 32, страница с фото, страница с адресом регистрации; для вида на жительство – с. 16, страница с фото, страница с адресом регистрации; для биометрического документа, удостоверяющего личность: обе стороны документа))."]
["1.4",{"$f":"IF(AND($B$4=\"Юр. лицо\",$B$8=\"Да\"),\"+\",\"-\")","v":"-"},null,"Документ, подтверждающий полномочия представителя (уполномоченного лица) (доверенность (либо заверенная клиентом копия доверенности);    \n\nдокумент, удостоверяющий его личность.","Предоставляется в следующих случаях:\n1) от имени юридического лица договоры будет подписывать не руководитель;\n2) от имени юридического лица договоры будет подписывать лицо, исполняющее обязанности руководителя на время его отсутствия.","доверенность действительна до даты, указанной в ней.","копия* или оригинал***\n"]
[null,{"$f":"IF(AND($B$4=\"Юр. лицо\",$B$8=\"Да\"),\"+\",\"-\")","v":"-"},null,null,"Страницы (стороны) документа, удостоверяющего личность, содержащих информацию о фамилии (имени, отчестве), реквизитах данного документа, адресе регистрации, фотографию (для паспорта: с. 25, 31, 32, страница с фото, страница с адресом регистрации; для вида на жительство – с. 16, страница с фото, страница с адресом регистрации; для биометрического документа, удостоверяющего личность: обе стороны документа)","до указанной в нем даты","копия* или скан-копия** "]
["1.5",{"$f":"IF(B6=\"Нет\",\"+\",\"-\")","v":"-"},null,"Копия карточки с образцами подписей должностных лиц юридического лица (индивидуального предпринимателя), имеющих право подписи документов для проведения расчетов","Подробнее см ниже:",null,"копия, удостоверенная обслуживающим банком"]
[null,null,null,"Копия карточки с образцами подписей может быть предоставлена ПОСЛЕ получения положительного решения о предоставлении запрашиваемого продукта и ТОЛЬКО В СЛУЧАЕ, если ДО заключения кредитного договора с клиентом НЕ будет открыт текущий (расчетный) счет в ЗАО \"МТБанк\".\n\nКопия карточки с образцами подписей должна быть заверена надлежащим образом банком, в котором открыт текущий (расчетный) счет клиента, или вышестоящей организацией (для юридических лиц, созданных на основании законов Республики Беларусь, правовых актов Президента Республики Беларусь, постановлений Правительства Республики Беларусь, полностью финансируемых из бюджета и имеющих вышестоящую организацию, а также их структурных подразделений с правами юридического лица), либо нотариально удостоверена."]
["1.6","+",null,"Согласие клиента, его представителя проводить ксерокопирование, сканирование, делать копии на электронных носителях.","Согласие предоставляется только в случае, когда снятие копии нижеуказанных документов с оригинала осуществляет работник ЗАО \"МТБанк\":\n- документ, удостоверяющий личность, \n- учредительный документ (устав, учредительный договор),\n- регистрационный документ (свидетельство о регистрации).",null,"установленная форма банка"]
["1.7",{"$f":"IF($B$4=\"ИП\",\"+\",\"-\")","v":"-"},null,"Согласие на обработку персональных данных","Согласие предоставляется только Заявителем-ИП как от физического лица\nв целях исполнения Закона о защите персональных данных",null,"установленная форма банка"]
["2.","+",null,"Документы по сделке"]
["2.1","+",null,"Заявка на получение запрашиваемого продукта.","Если на рассмотрение подается несколько сделок одновременно, то оформляется 1 общая заявка (при этом допускается оформление отдельной заявки на каждую из сделок).\nЗаявка состоит из 3-х частей:\nчасть 1 - Заявка на получение продукта (общие сведения)\nчасть 2 - Анкетные данные Заявителя\nчасть 3 - Доп. сведения к Заявке",null,"установленная форма банка"]
["2.2",{"$f":"IF($B$6=\"Нет\",\"+\",\"-\")","v":"-"},null,"Вопросник.","Форма расположена в одном файле вместе с Заявкой на получение запрашиваемого продукта.\nДокумент предоставляется в соответствии с требованиями законодательства Республики Беларусь.",null,"установленная форма банка"]
["2.2.1",{"$f":"IF(AND(B6=\"Нет\",B4=\"Юр. лицо\"),\"+\",\"-\")","v":"-"},null,"Дополнительный вопросник для организаций определенного перечня.","Перечень организаций представлен на листе \"Доп. вопросник\"",null,"установленная форма банка"]
["2.3",{"$f":"IF(OR($B$4=\"Юр. лицо\"),\"+\",\"-\")","v":"-"},null,"Согласие на получение в Национальном банке Республики Беларусь кредитного отчета;\n\nСогласие руководителя (управляющего, руководителя управляющей организации) на предоставление сведений о нем из информационных ресурсов, находящихся в ведении Министерства внутренних дел Республики Беларусь и Национального банка Республики Беларусь.","Формы расположены в одном файле вместе с Заявкой на получение запрашиваемого продукта.\n\nЕсли одновременно рассматривается сразу несколько сделок от клиента, согласия на получение кредитного отчета должны быть предоставлены по каждой сделке. При этом если одной из таких сделок является выпуск банковской гарантии, отдельное согласие на получение кредитного отчета по гарантии не требуется.","3 месяца с даты оформления;","установленная форма банка"]
["2.4",{"$f":"IF(OR($B$4=\"Юр. лицо\"),\"+\",\"-\")","v":"-"},null,null,null,"до окончания срока действия паспорта, который указан в согласии.\nЕсли документ был предоставлен ранее и является актуальным, то может повторно не предоставляться","установленная форма банка"]
["2.3",{"$f":"IF($B$4=\"ИП\",\"+\",\"-\")","v":"-"},null,"Согласие на получение в Национальном банке Республики Беларусь кредитного отчета;\n\nСогласие индивидуального предпринимателя на предоставление сведений о нем из информационных ресурсов, находящихся в ведении Министерства внутренних дел Республики Беларусь и Национального банка Республики Беларусь.","Предоставляется 2 варианта согласия на предоставление кредитного отчета: один вариант – по форме, установленной для  юридических лиц, второй вариант – по форме, установленной  для физических лиц. Обе формы расположены в одном файле вместе с Заявкой на получение запрашиваемого продукта.\n\nЕсли одновременно рассматривается сразу несколько сделок от клиента, согласия на получение кредитного отчета должны быть предоставлены по каждой сделке. При этом если одной из таких сделок является выпуск банковской гарантии, отдельное согласие на получение кредитного отчета по гарантии не требуется.","3 месяца с даты оформления;","установленная форма банка"]
["2.4",{"$f":"IF($B$4=\"ИП\",\"+\",\"-\")","v":"-"},null,null,null,"до окончания срока действия паспорта, который указан в согласии.\nЕсли документ был предоставлен ранее и является актуальным, то может повторно не предоставляться","установленная форма банка"]
["2.5",{"$f":"IF(OR($B$4=\"Юр. лицо\"),\"+\",\"-\")","v":"-"},null,"Согласие руководителя (в т.ч. управляющего, руководителя управляющей организации) клиента на получение кредитного отчета","Индивидуальным предпринимателем (управляющим) предоставляется 2 варианта согласия на предоставление кредитного отчета: один вариант – по форме, установленной для  юридических лиц, второй вариант – по форме, установленной  для физических лиц. \n\nДля того, чтобы индивидуальному предпринимателю (управляющему) заполнить форму для юридических лиц, необходимо скопировать вкладку \"Согл БКИ (ЮЛ)\", нажав на ее наименование правой кнопкой мыши, выбрав вариант \"Переместить или скопировать\", и, проставив галочку в поле \"создать копию\", нажать \"Ок\".",null,"установленная форма банка"]
["2.6",{"$f":"IF($B$10=\"Да\",\"+\",\"-\")","v":"-"},null,"Документы по поручительству.","Перечень документов указан на листе \"Для поручителя\""]
["3.","+",null,"Документы по финансовому состоянию"]
["3.1",{"$f":"IF(OR(AND(B3=\"Овердрафт\",B5=\"Да\"),B9=\"НКЛ\"),\"+\",\"-\")","v":"-"},null,"Выписки из банков, ранее обслуживающих текущие (расчетные) счета клиента, по ежедневному движению денежных средств по текущим (расчетным) счетам клиента в белорусских рублях и иностранной валюте ","Выписки предоставляются за последние 6 полных месяцев обслуживания в данном банке с указанием назначения платежа",null,"по форме банка, ранее обслуживавшего текущие счета клиента"]
["3.1",{"$f":"IF(B9=\"ВКЛ\",\"+\",\"-\")","v":"-"},null,"Информация от банка(ов) об общем объеме поступлений на текущие (расчетные) счета клиента в белорусских рублях и иностранной валюте","Информация предоставляется за последние 6 месяцев обслуживания в банке(ах) (по месяцам)",null,"по форме банка, ранее обслуживавшего текущие счета клиента"]
["3.2",{"$f":"IF(B9=\"ВКЛ\",\"+\",\"-\")","v":"-"},null,"Справка о поступлениях на текущие (расчетные) счета выручки от реализации продукции, товаров, работ","Документ предоставляется за период - 6 полных последних месяцев",null,"установленная форма Банка"]
[null,"+",null,"ВАЖНО!!!"]
["1)","+","*копии предоставляемых документов должны быть заверены отметкой «копия верна» и:\n- документы юридического лица – подписью руководителя юридического лица (уполномоченного сотрудника предприятия) на каждом листе либо в месте скрепления способом, не позволяющим разъединение листов без нарушения целостности (документы могут быть заверены печатью юридического лица);\n- документы индивидуального предпринимателя – подписью индивидуального предпринимателя на каждом листе либо в месте скрепления способом, не позволяющим разъединение листов без нарушения целостности (документы могут быть заверены печатью индивидуального предпринимателя);\n- документы физического лица - подписью физического лица на каждом листе либо в месте скрепления способом, не позволяющим разъединение листов без нарушения целостности. \n\n**скан-копия - скан документа (документа с оригинальными подписями, а также копии документа, заверенного надлежащим образом) без заверения скана надлежащим образом. При предоставлении свидетельства о государственной регистрации либо паспорта в виде скан-копии необходимо проверить достоверность информации на скан-копии через ЕГР (для свидетельства) либо проверить актуальность и достоверность информации на скан-копии через базу МВД (для паспорта).\n\n*** оригиналы предоставляемых документов должны быть:\n- для юридического лица - подписаны руководителем юридического лица (уполномоченным сотрудником предприятия) и могут быть заверены печатью юридического лица;\n- для индивидуального предпринимателя - подписаны индивидуальным предпринимателем и могут быть заверены печатью индивидуального предпринимателя;\n- для физического лица - подписаны подписью физического лица."]
["2) ","+","Дополнительно могут быть запрошены любые другие документы, которые, по мнению Банка, могут влиять на принятие решения о заключении кредитной сделки (рекомендательные письма, документы, подтверждающие репутацию клиента, и т.п.)."]
["3)","+","Документы, составленные на иностранном языке, должны быть переведены на русский или белорусский язык (в том числе, если двуязычный договор содержит указание о превалировании текста на иностранном языке). Перевод должен быть осуществлен профессиональным переводчиком, что подтверждается заключенным договором между клиентом и сторонней организацией (индивидуальным предпринимателем), оказывающей услуги по переводу. Список переводчиков, подлинность подписи которых свидетельствуется нотариусом, можно посмотреть на сайте http://belnotary.by."]
["4)","+","При наличии у руководителя кредитополучателя (поручителя, залогодателя) ограничений на совершение сделок, необходимо разрешение уполномоченного органа юридического лица на совершение сделок с банком. "]

{"sheet":"Для поручителя","index":2,"n_rows":18,"n_cols":7,"rows_kept":18,"cut":false,"hidden":false,"merged":[[17,3,17,6],[9,3,9,6],[5,3,5,6],[0,3,0,6],[1,3,1,6],[2,2,2,6],[15,3,15,6],[16,3,16,6]]}
[null,null,null,"СПИСОК"]
[null,null,null,"  документов для оформления поручительства"]
[null,null,"У поручителя имеются действующие договоры на осуществление финансовых операций в письменной форме (в рамках ПВК)?"]
[]
[null,"Отметка о необходимости документа","Отметка Банка о наличии документа ","Наименование документа","Комментарий","Срок действия документа","Описание формы предоставления"]
["1.",{"$f":"IF(OR($B$3=\"Нет\",#REF!=\"+\",#REF!=\"+\",$B$7=\"+\"),\"+\",\"-\")","v":{"$error":"#REF!"}},null,"Правоустанавливающие документы для поручителя"]
["1.1","+",null,"Документ, удостоверяющий личность поручителя - физического лица.","Страницы (стороны) документа, удостоверяющего личность, содержащие информацию о фамилии (имени, отчестве), реквизитах данного документа, адреса регистрации, регистрации и/или расторжения брака, фотографию (для паспорта: с. 25, 27, 31, 32, страница с фото, страница с адресом регистрации; для вида на жительство – с. 16, страница с фото, страница с адресом регистрации; для биометрического документа, удостоверяющего личность: обе стороны документа)","до указанной в нем даты","копия* или скан-копия** "]
["1.2","+",null,"Согласие поручителя, его представителя проводить ксерокопирование, сканирование, делать копии на электронных носителях.","Согласие предоставляется только в случае, когда снятие копии нижеуказанных документов с оригинала осуществляет работник ЗАО \"МТБанк\":\n- документ, удостоверяющий личность, \n- учредительный документ (устав, учредительный договор),\n- регистрационный документ (свидетельство о регистрации).",null,"копия, удостоверенная обслуживающим банком"]
["1.3","+",null,"Согласие на обработку персональных данных","Согласие предоставляется только Заявителем-ИП как от физического лица\nв целях исполнения Закона о защите персональных данных",null,"установленная форма банка"]
["2.","+",null,"Документы для оформления поручительства"]
["2.1","+",null,"Анкета поручителя.","Если на рассмотрение подается несколько сделок одновременно, то оформляется 1 анкета (при этом допускается оформление отдельной анкеты на каждую сделку).",null,"установленная форма банка"]
["2.2",{"$f":"IF($B$3=\"Нет\",\"+\",\"-\")","v":"-"},null,"Вопросник стандартной формы","Форма расположена в одном файле вместе с Анкетой поручителя.\nВопросник предоставляется поручителем, не имеющим в ЗАО \"МТБанк\" иных действующих договоров на осуществление финансовых операций* в письменной форме.\n* Финансовая операция – сделка со средствами независимо от формы и способа ее осуществления. При осуществлении банковских операций под финансовой операцией понимаются открытие банковского счета, разовые платеж, перевод, поступление, выдача, обмен, внесение средств. При осуществлении депозитарных операций под финансовой операцией понимаются открытие счетов «депо», депозитарный перевод ценных бумаг.",null,"установленная форма банка"]
["2.3","+",null,"Согласие на получение в Национальном банке Республики Беларусь кредитного отчета.","Форма расположена в одном файле вместе с Анкетой поручителя.\n\nЕсли одновременно рассматривается сразу несколько сделок от клиента, согласия на получение кредитного отчета должны быть предоставлены по каждой сделке.","3 месяца с даты оформления","установленная форма банка"]
["2.4","+",null,"Согласие на предоставление сведений из информационных ресурсов, находящихся в ведении Министерства внутренних дел Республики Беларусь и Национального банка Республики Беларусь.","Форма расположена в одном файле вместе с Анкетой поручителя.","до окончания срока действия паспорта, который указан в согласии","установленная форма Банка"]
["2.5","+",null,"Согласие на получение информации о поручителе при оказании электронной услуги ОАИС «Предоставление сведений о датах приема и увольнения застрахованного лица и суммах выплат, на которые начислены страховые взносы»",null,null,"установленная форма Банка"]
[null,null,null,"ВАЖНО!!!"]
["1)","+",null,"*копии предоставляемых документов должны быть заверены отметкой «копия верна» и:\n- документы юридического лица – подписью руководителя юридического лица (уполномоченного сотрудника предприятия) на каждом листе либо в месте скрепления способом, не позволяющим разъединение листов без нарушения целостности (документы могут быть заверены печатью юридического лица);\n- документы индивидуального предпринимателя – подписью индивидуального предпринимателя на каждом листе либо в месте скрепления способом, не позволяющим разъединение листов без нарушения целостности (документы могут быть заверены печатью индивидуального предпринимателя);\n- документы физического лица - подписью физического лица на каждом листе либо в месте скрепления способом, не позволяющим разъединение листов без нарушения целостности. \n\n**скан-копия - скан документа (документа с оригинальными подписями, а также копии документа, заверенного надлежащим образом) без заверения скана надлежащим образом. При предоставлении свидетельства о государственной регистрации либо паспорта в виде скан-копии необходимо проверить достоверность информации на скан-копии через ЕГР (для свидетельства) либо проверить актуальность и достоверность информации на скан-копии через базу МВД (для паспорта)."]
["2)","+",null,"Дополнительно могут быть запрошены любые другие документы, которые, по мнению Банка, могут влиять на принятие решения о заключении кредитной сделки (рекомендательные письма, документы, подтверждающие репутацию клиента, и т.п.)."]

{"sheet":"Доп. вопросник","index":3,"n_rows":25,"n_cols":1,"rows_kept":25,"cut":false,"hidden":false,"merged":[[7,0,7,15],[0,0,1,15],[2,0,3,15],[4,0,4,15],[5,0,5,15],[6,0,6,15],[19,0,19,15],[8,0,8,15],[9,0,9,15],[10,0,10,15],[11,0,11,15],[12,0,12,15],[13,0,13,15],[14,0,14,15],[15,0,15,15],[16,0,16,15],[17,0,17,15],[18,0,18,15],[20,0,20,15],[21,0,21,15],[22,0,22,15],[23,0,23,15],[24,0,24,15]]}
["В случаях совпадения организации с перечнем лиц, приведенных ниже, необходимо заполнить дополнительный вопросник"]
[]
["Перечень лиц осуществляющих финансовые операции:"]
[]
["• Национальный банк, банки и небанковские кредитно-финансовые организации, открытое акционерное общество \"Банк развития Республики Беларусь\";"]
["• профессиональные участники рынка ценных бумаг;"]
["• товарные биржи;"]
["• лица, осуществляющие торговлю драгоценными металлами и драгоценными камнями;"]
["• пункты скупки;"]
["• страховые организации и страховые брокеры;"]
["• организаторы лотерей и электронных интерактивных игр;"]
["• нотариусы;"]
["• организации, оказывающие риэлтерские услуги и принимающие участие в операциях, связанных с куплей-продажей недвижимого имущества для своего клиента;"]
["• аудиторские организации, аудиторы, осуществляющие деятельность в качестве индивидуальных предпринимателей, оказывающие профессиональные услуги по ведению бухгалтерского учета и составлению бухгалтерской и (или) финансовой отчетности, связанные с совершением от имени и (или) по поручению клиента финансовых операций;"]
["• организации и индивидуальные предприниматели, адвокаты и адвокатские бюро, оказывающие юридические услуги (юридическую помощь), связанные с созданием организаций либо участием в управлении ими, приобретением или продажей предприятия как имущественного комплекса, совершением финансовых операций и (или) управлением денежными средствами или иным имуществом от имени и (или) по поручению клиента;"]
["• операторы почтовой связи;"]
["• организаторы азартных игр;"]
["• организации по государственной регистрации недвижимого имущества, прав на него и сделок с ним;"]
["• лизинговые организации;"]
["• микрофинансовые организации, иные юридические лица, которые в соответствии с законодательными актами вправе осуществлять микрофинансовую деятельность;"]
["• форекс-компании, Национальный форекс-центр;"]
["• резиденты Парка высоких технологий, осуществляющие следующие виды деятельности: оказание услуг, связанных с созданием и размещением цифровых знаков (токенов) с использованием глобальной компьютерной сети Интернет, включая услуги по продвижению цифровых знаков (токенов), консультационные и иные сопутствующие услуги; деятельность оператора криптоплатформы; деятельность оператора обмена криптовалют; иная деятельность с использованием цифровых знаков (токенов), в том числе содержащая признаки профессиональной и биржевой деятельности по ценным бумагам, деятельности инвестиционного фонда, секьюритизации, а также осуществление операций по созданию и размещению собственных цифровых знаков (токенов);"]
["• специальные финансовые организации;"]
["• управляющие организации инвестиционных фондов;"]
["• налоговые консультанты."]